[Event "Nové Hrady - Open"]
[Site "Nové Hrady, Czech Republic"]
[Date "2024.08.12"]
[Round "2.4"]
[White "Slabý, Matěj"]
[Black "Junek, Petr"]
[Result "1-0"]
[TimeControl "2x90min+30s"]
[WhiteFideId "23734876"]
[BlackFideId "23739282"]
[WhiteElo "2020"]
[BlackElo "1775"]

1. d4 {[%clk 01:30:56]} {[%emt 00:00:03]} c5 {[%clk 01:30:53]} {[%emt
00:00:08]} 2. c3 {[%clk 01:31:18]} {[%emt 00:00:08]} Nf6 {[%clk 01:30:45]}
{[%emt 00:00:39]} 3. Nf3 {[%clk 01:31:33]} {[%emt 00:00:14]} cxd4 {[%clk
01:30:07]} {[%emt 00:01:08]} 4. cxd4 {[%clk 01:31:55]} {[%emt 00:00:07]} d5
{[%clk 01:30:30]} {[%emt 00:00:08]} 5. Nc3 {[%clk 01:32:08]} {[%emt 00:00:17]}
Nc6 {[%clk 01:30:31]} {[%emt 00:00:29]} 6. Bf4 {[%clk 01:30:39]} {[%emt
00:01:59]} a6 {[%clk 01:21:57]} {[%emt 00:09:04]} 7. e3 {[%clk 01:30:38]}
{[%emt 00:00:30]} Bf5 {[%clk 01:20:08]} {[%emt 00:02:20]} 8. Be2 {[%clk
01:29:27]} {[%emt 00:01:40]} e6 {[%clk 01:19:40]} {[%emt 00:00:59]} 9. a3
{[%clk 01:29:34]} {[%emt 00:00:23]} Bd6 {[%clk 01:16:09]} {[%emt 00:04:01]} 10.
Bxd6 {[%clk 01:29:13]} {[%emt 00:00:50]} Qxd6 {[%clk 01:16:30]} {[%emt
00:00:10]} 11. Rc1 {[%clk 01:28:56]} {[%emt 00:00:48]} O-O {[%clk 01:12:50]}
{[%emt 00:04:09]} 12. Na4 {[%clk 01:26:57]} {[%emt 00:02:29]} Ne4 {[%clk
01:02:51]} {[%emt 00:10:30]} 13. Nh4 {[%clk 01:25:10]} {[%emt 00:02:16]} Ne7
{[%clk 00:50:48]} {[%emt 00:12:33]} 14. Nxf5 {[%clk 01:14:30]} {[%emt
00:11:11]} Nxf5 {[%clk 00:51:06]} {[%emt 00:00:11]} 15. Bd3 {[%clk 01:11:06]}
{[%emt 00:03:57]} Nf6 {[%clk 00:38:31]} {[%emt 00:13:03]} 16. Nc5 {[%clk
01:00:44]} {[%emt 00:10:55]} Nd7 {[%clk 00:30:28]} {[%emt 00:08:29]} 17. b4
{[%clk 00:56:22]} {[%emt 00:04:53]} Nxc5 {[%clk 00:25:47]} {[%emt 00:05:11]} 18.
bxc5 {[%clk 00:55:21]} {[%emt 00:01:31]} Qd8 {[%clk 00:26:06]} {[%emt
00:00:11]} 19. Qb3 {[%clk 00:54:11]} {[%emt 00:01:40]} Rb8 {[%clk 00:20:35]}
{[%emt 00:06:00]} 20. O-O {[%clk 00:48:29]} {[%emt 00:06:12]} Qg5 {[%clk
00:18:37]} {[%emt 00:02:29]} 21. Rfd1 {[%clk 00:46:41]} {[%emt 00:02:18]} Nh4
{[%clk 00:18:19]} {[%emt 00:00:47]} 22. Bf1 {[%clk 00:46:16]} {[%emt 00:00:55]}
f5 {[%clk 00:15:03]} {[%emt 00:03:47]} 23. Qb6 {[%clk 00:41:55]} {[%emt
00:04:50]} Rf6 {[%clk 00:11:29]} {[%emt 00:04:04]} 24. f4 {[%clk 00:31:13]}
{[%emt 00:11:12]} Qh5 {[%clk 00:05:12]} {[%emt 00:06:46]} 25. c6 {[%clk
00:28:54]} {[%emt 00:02:50]} Qe8 {[%clk 00:02:12]} {[%emt 00:03:30]} 26. c7
{[%clk 00:27:41]} {[%emt 00:01:43]} Rc8 {[%clk 00:01:42]} {[%emt 00:01:01]} 27.
Qxb7 {[%clk 00:27:57]} {[%emt 00:00:13]} Rg6 {[%clk 00:00:43]} {[%emt
00:01:28]} 28. Rb1 {[%clk 00:26:11]} {[%emt 00:02:17]} Nf3+ {[%clk 00:00:37]}
{[%emt 00:00:37]} 29. Kf2 {[%clk 00:26:17]} {[%emt 00:00:24]} Nxh2 {[%clk
00:00:42]} {[%emt 00:00:24]} 30. Qxc8 {[%clk 00:26:26]} {[%emt 00:00:21]} Ng4+
{[%clk 00:00:41]} {[%emt 00:00:30]} 31. Ke1 {[%clk 00:26:40]} {[%emt 00:00:18]}
1-0

[Event "Nové Hrady - Open"]
[Site "Nové Hrady, Czech Republic"]
[Date "2024.08.12"]
[Round "2.5"]
[White "Hajicek, Matyas"]
[Black "Steinbauer, Sebastián"]
[Result "0-1"]
[TimeControl "2x90min+30s"]
[WhiteFideId "23764481"]
[BlackFideId "399272"]
[WhiteElo "1653"]
[BlackElo "1990"]

1. e4 {[%clk 01:30:58]} {[%emt 00:00:03]} e5 {[%clk 01:30:57]} {[%emt
00:00:03]} 2. Nf3 {[%clk 01:31:04]} {[%emt 00:00:24]} Nf6 {[%clk 01:31:09]}
{[%emt 00:00:18]} 3. Bc4 {[%clk 01:31:27]} {[%emt 00:00:07]} Nxe4 {[%clk
01:30:54]} {[%emt 00:00:45]} 4. Nc3 {[%clk 01:31:51]} {[%emt 00:00:06]} Nd6
{[%clk 01:27:44]} {[%emt 00:03:41]} 5. Bb3 {[%clk 01:31:58]} {[%emt 00:00:22]}
Nc6 {[%clk 01:27:40]} {[%emt 00:00:34]} 6. d4 {[%clk 01:32:14]} {[%emt
00:00:14]} exd4 {[%clk 01:27:29]} {[%emt 00:00:41]} 7. Nd5 {[%clk 01:32:27]}
{[%emt 00:00:17]} Be7 {[%clk 01:26:35]} {[%emt 00:01:24]} 8. Bf4 {[%clk
01:32:17]} {[%emt 00:00:40]} O-O {[%clk 01:26:35]} {[%emt 00:00:30]} 9. Nxd4
{[%clk 01:32:08]} {[%emt 00:00:39]} Bf6 {[%clk 01:25:37]} {[%emt 00:01:29]} 10.
Nxc6 {[%clk 01:30:53]} {[%emt 00:01:44]} dxc6 {[%clk 01:25:13]} {[%emt
00:00:54]} 11. Nxc7 {[%clk 01:30:12]} {[%emt 00:01:10]} Qxc7 {[%clk 01:24:57]}
{[%emt 00:00:46]} 12. Bxd6 {[%clk 01:30:22]} {[%emt 00:00:21]} Qa5+ {[%clk
01:25:03]} {[%emt 00:00:23]} 13. c3 {[%clk 01:29:42]} {[%emt 00:01:11]} Rd8
{[%clk 01:24:55]} {[%emt 00:00:38]} 14. O-O {[%clk 01:27:28]} {[%emt 00:02:43]}
Be7 {[%clk 01:24:45]} {[%emt 00:00:41]} 15. Bb4 {[%clk 01:27:25]} {[%emt
00:00:33]} Rxd1 {[%clk 01:24:05]} {[%emt 00:01:09]} 16. Bxa5 {[%clk 01:27:49]}
{[%emt 00:00:07]} Rxa1 {[%clk 01:24:03]} {[%emt 00:00:32]} 17. Rxa1 {[%clk
01:28:13]} {[%emt 00:00:06]} b6 {[%clk 01:24:25]} {[%emt 00:00:08]} 18. Re1
{[%clk 01:25:57]} {[%emt 00:02:46]} Kf8 {[%clk 01:24:40]} {[%emt 00:00:14]} 19.
Bb4 {[%clk 01:26:20]} {[%emt 00:00:08]} c5 {[%clk 01:25:07]} {[%emt 00:00:03]}
20. Ba3 {[%clk 01:26:43]} {[%emt 00:00:07]} Bb7 {[%clk 01:25:07]} {[%emt
00:00:30]} 21. Kf1 {[%clk 01:24:42]} {[%emt 00:02:30]} b5 {[%clk 01:25:00]}
{[%emt 00:00:38]} 22. f3 {[%clk 01:20:48]} {[%emt 00:04:23]} b4 {[%clk
01:24:45]} {[%emt 00:00:46]} 23. cxb4 {[%clk 01:19:34]} {[%emt 00:01:44]} cxb4
{[%clk 01:19:19]} {[%emt 00:05:56]} 24. Rxe7 {[%clk 01:19:58]} {[%emt
00:00:06]} Kxe7 {[%clk 01:19:38]} {[%emt 00:00:11]} 25. Bxb4+ {[%clk 01:20:22]}
{[%emt 00:00:06]} Ke8 {[%clk 01:19:40]} {[%emt 00:00:28]} 26. Ba4+ {[%clk
01:19:46]} {[%emt 00:01:06]} Kd8 {[%clk 01:20:02]} {[%emt 00:00:08]} 27. Ke2
{[%clk 01:19:23]} {[%emt 00:00:53]} Bd5 {[%clk 01:20:14]} {[%emt 00:00:18]} 28.
a3 {[%clk 01:17:20]} {[%emt 00:02:32]} Kc7 {[%clk 01:19:53]} {[%emt 00:00:51]}
29. Kd3 {[%clk 01:16:48]} {[%emt 00:01:03]} Kb6 {[%clk 01:19:43]} {[%emt
00:00:40]} 30. Kd4 {[%clk 01:12:56]} {[%emt 00:04:22]} Be6 {[%clk 01:20:05]}
{[%emt 00:00:07]} 31. Ke5 {[%clk 01:12:12]} {[%emt 00:01:15]} Rd8 {[%clk
01:19:45]} {[%emt 00:00:49]} 32. Kf4 {[%clk 01:09:50]} {[%emt 00:02:53]} Rd5
{[%clk 01:18:22]} {[%emt 00:01:53]} 33. Ke3 {[%clk 01:03:40]} {[%emt 00:06:40]}
Re5+ {[%clk 01:17:04]} {[%emt 00:01:48]} 34. Kf2 {[%clk 01:03:05]} {[%emt
00:01:04]} Bc4 {[%clk 01:16:40]} {[%emt 00:00:54]} 35. Bd1 {[%clk 01:02:45]}
{[%emt 00:00:50]} Kb5 {[%clk 01:15:50]} {[%emt 00:01:21]} 36. Bc3 {[%clk
01:00:59]} {[%emt 00:02:16]} Rd5 {[%clk 01:16:00]} {[%emt 00:00:19]} 37. Bc2
{[%clk 01:00:44]} {[%emt 00:00:46]} g6 {[%clk 01:15:50]} {[%emt 00:00:39]} 38.
Ke3 {[%clk 00:56:18]} {[%emt 00:04:57]} Rd7 {[%clk 01:09:04]} {[%emt 00:07:16]}
39. Bb4 {[%clk 00:53:41]} {[%emt 00:03:06]} a5 {[%clk 01:09:00]} {[%emt
00:00:35]} 40. Bf8 {[%clk 00:50:53]} {[%emt 00:03:17]} a4 {[%clk 01:08:18]}
{[%emt 00:01:13]} 41. Bb4 {[%clk 00:49:43]} {[%emt 00:01:40]} Rd8 {[%clk
01:07:56]} {[%emt 00:00:50]} 42. Kf2 {[%clk 00:49:06]} {[%emt 00:01:08]} Re8
{[%clk 01:04:51]} {[%emt 00:03:36]} 43. Bd1 {[%clk 00:48:13]} {[%emt 00:01:22]}
Rd8 {[%clk 00:55:50]} {[%emt 00:09:31]} 44. Bc2 {[%clk 00:47:10]} {[%emt
00:01:34]} Bb3 {[%clk 00:56:04]} {[%emt 00:00:15]} 45. Bxb3 {[%clk 00:39:57]}
{[%emt 00:07:44]} axb3 {[%clk 00:56:30]} {[%emt 00:00:04]} 46. Ke2 {[%clk
00:39:51]} {[%emt 00:00:36]} Rc8 {[%clk 00:56:53]} {[%emt 00:00:07]} 47. Bc3
{[%clk 00:40:12]} {[%emt 00:00:09]} Rxc3 {[%clk 00:56:54]} {[%emt 00:00:28]} 48.
bxc3 {[%clk 00:40:08]} {[%emt 00:00:35]} b2 {[%clk 00:57:18]} {[%emt 00:00:07]}
49. c4+ {[%clk 00:40:32]} {[%emt 00:00:06]} Kxc4 {[%emt 00:00:05]} 50. Kd2
{[%clk 00:40:29]} {[%emt 00:00:31]} b1=Q {[%clk 00:57:57]} {[%emt 00:00:17]}
0-1

[Event "Nové Hrady - Open"]
[Site "Nové Hrady, Czech Republic"]
[Date "2024.08.12"]
[Round "2.6"]
[White "Hrbek, Jáchym"]
[Black "Borecký, Andrej"]
[Result "1-0"]
[TimeControl "2x90min+30s"]
[WhiteFideId "23709138"]
[BlackFideId "23752670"]
[WhiteElo "1996"]
[BlackElo "1672"]

1. e4 {[%clk 01:30:30]} {[%emt 00:00:30]} c5 {[%clk 01:30:30]} {[%emt
00:00:32]} 2. b4 {[%clk 01:30:30]} {[%emt 00:00:29]} d6 {[%clk 01:28:17]}
{[%emt 00:02:44]} 3. bxc5 {[%clk 01:30:51]} {[%emt 00:00:07]} dxc5 {[%clk
01:28:42]} {[%emt 00:00:06]} 4. Bb2 {[%clk 01:22:36]} {[%emt 00:08:45]} Nc6
{[%clk 01:26:29]} {[%emt 00:02:44]} 5. Bc4 {[%clk 01:15:53]} {[%emt 00:07:11]}
Nf6 {[%clk 01:23:24]} {[%emt 00:03:36]} 6. d3 {[%clk 01:15:38]} {[%emt
00:00:45]} e6 {[%clk 01:22:20]} {[%emt 00:01:34]} 7. Nf3 {[%clk 01:11:32]}
{[%emt 00:04:35]} Be7 {[%clk 01:21:21]} {[%emt 00:01:29]} 8. O-O {[%clk
01:11:39]} {[%emt 00:00:23]} O-O {[%clk 01:20:53]} {[%emt 00:00:59]} 9. a4
{[%clk 01:04:45]} {[%emt 00:07:24]} b6 {[%clk 01:16:56]} {[%emt 00:04:28]} 10.
Ne5 {[%clk 01:01:37]} {[%emt 00:03:36]} Nxe5 {[%clk 01:10:04]} {[%emt
00:07:23]} 11. Bxe5 {[%clk 01:01:43]} {[%emt 00:00:23]} Nd7 {[%clk 01:09:54]}
{[%emt 00:00:40]} 12. Bb2 {[%clk 01:01:29]} {[%emt 00:00:41]} Bf6 {[%clk
01:09:29]} {[%emt 00:00:59]} 13. Nc3 {[%clk 01:00:49]} {[%emt 00:01:09]} Ne5
{[%clk 01:08:20]} {[%emt 00:01:46]} 14. Ba2 {[%clk 00:55:01]} {[%emt 00:06:12]}
Nc6 {[%clk 01:06:59]} {[%emt 00:01:52]} 15. f4 {[%clk 00:48:43]} {[%emt
00:06:45]} Bd4+ {[%clk 01:06:12]} {[%emt 00:01:20]} 16. Kh1 {[%clk 00:49:01]}
{[%emt 00:00:11]} Kh8 {[%clk 01:00:35]} {[%emt 00:06:07]} 17. Rf3 {[%clk
00:46:57]} {[%emt 00:02:33]} Nb4 {[%clk 00:57:27]} {[%emt 00:03:40]} 18. Bc4
{[%clk 00:38:13]} {[%emt 00:09:14]} Bb7 {[%clk 00:54:54]} {[%emt 00:03:03]} 19.
Rh3 {[%clk 00:31:50]} {[%emt 00:06:52]} f5 {[%clk 00:52:46]} {[%emt 00:02:37]}
20. Rxh7+ {[%clk 00:31:55]} {[%emt 00:00:26]} Kg8 {[%clk 00:49:40]} {[%emt
00:03:36]} 21. Bxe6+ {[%clk 00:32:05]} {[%emt 00:00:20]} Rf7 {[%clk 00:49:47]}
{[%emt 00:00:23]} 22. Rh8+ {[%clk 00:32:30]} {[%emt 00:00:05]} 1-0

[Event "Nové Hrady - Open"]
[Site "Nové Hrady, Czech Republic"]
[Date "2024.08.12"]
[Round "2.7"]
[White "Dudarec, Elias"]
[Black "Kaiser, Richard"]
[Result "0-1"]
[TimeControl "2x90min+30s"]
[WhiteFideId "23714930"]
[BlackFideId "4651286"]
[WhiteElo "1750"]
[BlackElo "2019"]

1. e4 {[%clk 01:30:57]} {[%emt 00:00:03]} c5 {[%clk 01:30:55]} {[%emt
00:00:05]} 2. b4 {[%clk 01:31:23]} {[%emt 00:00:04]} cxb4 {[%clk 01:31:21]}
{[%emt 00:00:04]} 3. a3 {[%clk 01:31:48]} {[%emt 00:00:05]} d5 {[%clk
01:31:45]} {[%emt 00:00:07]} 4. exd5 {[%clk 01:32:10]} {[%emt 00:00:07]} Nf6
{[%clk 01:32:06]} {[%emt 00:00:09]} 5. Nf3 {[%clk 01:31:01]} {[%emt 00:01:39]}
Nxd5 {[%clk 01:27:22]} {[%emt 00:05:14]} 6. axb4 {[%clk 01:22:38]} {[%emt
00:08:53]} Nxb4 {[%emt 00:03:55]} 7. Bc4 {[%clk 01:18:55]} {[%emt 00:01:39]}
Bf5 {[%clk 01:23:04]} {[%emt 00:03:56]} 8. d3 {[%clk 01:14:16]} {[%emt
00:05:10]} e6 {[%clk 01:21:35]} {[%emt 00:01:59]} 9. O-O {[%clk 01:09:44]}
{[%emt 00:05:02]} Bd6 {[%clk 01:18:46]} {[%emt 00:03:19]} 10. c3 {[%clk
01:05:26]} {[%emt 00:04:48]} N4c6 {[%clk 01:15:17]} {[%emt 00:04:00]} 11. Ba3
{[%clk 01:03:56]} {[%emt 00:01:59]} O-O {[%clk 01:15:13]} {[%emt 00:00:34]} 12.
Re1 {[%clk 01:00:56]} {[%emt 00:03:29]} Qc7 {[%clk 01:10:24]} {[%emt 00:05:20]}
13. Bxd6 {[%clk 00:57:42]} {[%emt 00:03:44]} Qxd6 {[%clk 01:10:49]} {[%emt
00:00:05]} 14. Na3 {[%clk 00:57:13]} {[%emt 00:00:59]} Nd7 {[%clk 01:00:26]}
{[%emt 00:10:53]} 15. Nh4 {[%clk 00:47:26]} {[%emt 00:10:16]} Bg6 {[%emt
00:02:17]} 16. Nxg6 {[%clk 00:47:37]} {[%emt 00:00:13]} hxg6 {[%clk 00:59:11]}
{[%emt 00:00:05]} 17. Nb5 {[%clk 00:44:07]} {[%emt 00:04:01]} Qb8 {[%clk
00:56:28]} {[%emt 00:03:13]} 18. d4 {[%clk 00:34:16]} {[%emt 00:10:19]} a6
{[%clk 00:56:05]} {[%emt 00:00:54]} 19. Na3 {[%clk 00:34:27]} {[%emt 00:00:19]}
Nf6 {[%clk 00:51:10]} {[%emt 00:05:25]} 20. Qf3 {[%clk 00:30:37]} {[%emt
00:04:19]} Qd6 {[%clk 00:49:27]} {[%emt 00:02:13]} 21. Bd3 {[%clk 00:28:15]}
{[%emt 00:02:53]} b5 {[%clk 00:49:20]} {[%emt 00:00:37]} 22. Nc2 {[%clk
00:27:28]} {[%emt 00:01:17]} Rfc8 {[%clk 00:41:59]} {[%emt 00:07:51]} 23. Be4
{[%clk 00:24:29]} {[%emt 00:03:29]} Nxe4 {[%clk 00:40:23]} {[%emt 00:02:06]} 24.
Rxe4 {[%clk 00:24:43]} {[%emt 00:00:15]} Ne7 {[%clk 00:32:57]} {[%emt
00:07:58]} 25. Rh4 {[%clk 00:14:48]} {[%emt 00:10:25]} Nf5 {[%clk 00:32:32]}
{[%emt 00:00:54]} 26. Rh3 {[%clk 00:15:05]} {[%emt 00:00:12]} Qd5 {[%clk
00:30:53]} {[%emt 00:02:10]} 27. Qxd5 {[%clk 00:11:52]} {[%emt 00:03:43]} exd5
{[%clk 00:31:18]} {[%emt 00:00:05]} 28. Nb4 {[%clk 00:11:45]} {[%emt 00:00:37]}
Ne7 {[%clk 00:31:11]} {[%emt 00:00:37]} 29. Re3 {[%clk 00:09:33]} {[%emt
00:02:42]} Kf8 {[%clk 00:31:13]} {[%emt 00:00:28]} 30. Rae1 {[%clk 00:09:10]}
{[%emt 00:00:52]} Ra7 {[%clk 00:30:26]} {[%emt 00:01:17]} 31. Re5 {[%clk
00:06:24]} {[%emt 00:03:16]} f6 {[%clk 00:29:57]} {[%emt 00:00:59]} 32. Re6
{[%clk 00:06:43]} {[%emt 00:00:12]} a5 {[%clk 00:30:05]} {[%emt 00:00:22]} 33.
Na2 {[%clk 00:04:00]} {[%emt 00:03:14]} Rb8 {[%clk 00:27:25]} {[%emt 00:03:10]}
34. Kf1 {[%clk 00:03:07]} {[%emt 00:01:22]} b4 {[%clk 00:27:17]} {[%emt
00:00:38]} 35. Rb1 {[%clk 00:02:25]} {[%emt 00:01:12]} b3 {[%clk 00:27:28]}
{[%emt 00:00:19]} 36. Nc1 {[%clk 00:02:40]} {[%emt 00:00:15]} a4 {[%clk
00:27:36]} {[%emt 00:00:22]} 37. g4 {[%clk 00:02:24]} {[%emt 00:00:46]} g5
{[%clk 00:27:12]} {[%emt 00:00:54]} 38. Re2 {[%clk 00:02:21]} {[%emt 00:00:32]}
Ng6 {[%clk 00:27:29]} {[%emt 00:00:13]} 39. Na2 {[%clk 00:01:16]} {[%emt
00:01:35]} Nf4 {[%clk 00:27:17]} {[%emt 00:00:42]} 40. Rd2 {[%clk 00:01:33]}
{[%emt 00:00:13]} Kf7 {[%clk 00:27:26]} {[%emt 00:00:21]} 41. Nb4 {[%clk
00:01:51]} {[%emt 00:00:13]} Rb6 {[%clk 00:27:23]} {[%emt 00:00:32]} 42. Ke1
{[%clk 00:00:41]} {[%emt 00:01:41]} a3 {[%clk 00:23:35]} {[%emt 00:04:18]} 43.
Kd1 {[%clk 00:01:00]} {[%emt 00:00:11]} a2 {[%clk 00:20:41]} {[%emt 00:03:24]}
44. Ra1 {[%clk 00:00:57]} {[%emt 00:00:33]} Re6 {[%clk 00:20:40]} {[%emt
00:00:30]} 45. f3 {[%clk 00:00:38]} {[%emt 00:00:49]} Rae7 {[%clk 00:20:32]}
{[%emt 00:00:39]} 46. Kc1 {[%clk 00:00:33]} {[%emt 00:00:34]} Re1+ {[%clk
00:20:44]} {[%emt 00:00:18]} 0-1

[Event "Nové Hrady - Open"]
[Site "Nové Hrady, Czech Republic"]
[Date "2024.08.12"]
[Round "2.8"]
[White "Šťastná, Martina"]
[Black "Hokr, Matyáš"]
[Result "1-0"]
[TimeControl "2x90min+30s"]
[WhiteFideId "385123"]
[BlackFideId "23734663"]
[WhiteElo "1945"]
[BlackElo "1641"]

1. e4 {[%clk 01:30:57]} {[%emt 00:00:02]} e6 {[%clk 01:30:47]} {[%emt
00:00:14]} 2. d4 {[%clk 01:31:20]} {[%emt 00:00:08]} d5 {[%clk 01:31:02]}
{[%emt 00:00:14]} 3. exd5 {[%clk 01:31:39]} {[%emt 00:00:11]} exd5 {[%clk
01:31:16]} {[%emt 00:00:17]} 4. Bd3 {[%clk 01:31:47]} {[%emt 00:00:21]} Bd6
{[%clk 01:30:37]} {[%emt 00:01:08]} 5. Nf3 {[%clk 01:30:26]} {[%emt 00:01:52]}
Ne7 {[%clk 01:27:40]} {[%emt 00:03:27]} 6. O-O {[%clk 01:28:12]} {[%emt
00:02:44]} Bg4 {[%clk 01:25:57]} {[%emt 00:02:13]} 7. Nbd2 {[%clk 01:26:59]}
{[%emt 00:01:43]} Nbc6 {[%clk 01:24:32]} {[%emt 00:01:56]} 8. c3 {[%clk
01:24:14]} {[%emt 00:03:15]} Qd7 {[%clk 01:23:39]} {[%emt 00:01:22]} 9. Qc2
{[%clk 01:16:20]} {[%emt 00:08:24]} O-O-O {[%clk 01:21:18]} {[%emt 00:02:51]}
10. b4 {[%clk 01:12:14]} {[%emt 00:04:36]} h5 {[%clk 01:02:00]} {[%emt
00:19:48]} 11. a4 {[%clk 01:00:45]} {[%emt 00:12:04]} f6 {[%clk 00:43:32]}
{[%emt 00:18:52]} 12. a5 {[%clk 00:53:50]} {[%emt 00:07:26]} g5 {[%clk
00:29:09]} {[%emt 00:14:53]} 13. b5 {[%clk 00:50:43]} {[%emt 00:03:38]} Nb8
{[%clk 00:29:20]} {[%emt 00:00:19]} 14. Ba3 {[%clk 00:45:34]} {[%emt 00:05:39]}
Bxa3 {[%clk 00:22:28]} {[%emt 00:07:21]} 15. Rxa3 {[%clk 00:45:55]} {[%emt
00:00:09]} Bf5 {[%clk 00:20:47]} {[%emt 00:02:11]} 16. c4 {[%clk 00:35:07]}
{[%emt 00:11:18]} Bxd3 {[%clk 00:16:49]} {[%emt 00:04:27]} 17. Rxd3 {[%clk
00:35:24]} {[%emt 00:00:14]} g4 {[%clk 00:14:03]} {[%emt 00:03:15]} 18. Nh4
{[%clk 00:34:57]} {[%emt 00:00:56]} f5 {[%clk 00:12:20]} {[%emt 00:02:14]} 19.
b6 {[%clk 00:31:36]} {[%emt 00:03:52]} a6 {[%clk 00:10:12]} {[%emt 00:02:39]}
20. c5 {[%clk 00:28:40]} {[%emt 00:03:25]} c6 {[%clk 00:09:52]} {[%emt
00:00:50]} 21. Re3 {[%clk 00:27:35]} {[%emt 00:01:33]} Rhf8 {[%clk 00:08:17]}
{[%emt 00:02:06]} 22. Rfe1 {[%clk 00:26:31]} {[%emt 00:01:34]} Rf7 {[%clk
00:07:47]} {[%emt 00:01:01]} 23. Re6 {[%clk 00:23:22]} {[%emt 00:03:38]} f4
{[%clk 00:04:22]} {[%emt 00:03:56]} 24. Rd6 {[%clk 00:19:31]} {[%emt 00:04:22]}
Qe8 {[%clk 00:04:38]} {[%emt 00:00:13]} 25. Ng6 {[%clk 00:18:30]} {[%emt
00:01:31]} Rd7 {[%clk 00:03:23]} {[%emt 00:01:45]} 26. Rde6 {[%clk 00:18:40]}
{[%emt 00:00:19]} f3 {[%clk 00:02:15]} {[%emt 00:01:38]} 27. Qc3 {[%clk
00:14:03]} {[%emt 00:05:07]} fxg2 {[%clk 00:01:40]} {[%emt 00:01:06]} 28. Qe3
{[%clk 00:14:08]} {[%emt 00:00:24]} 1-0

[Event "Nové Hrady - Open"]
[Site "Nové Hrady, Czech Republic"]
[Date "2024.08.12"]
[Round "2.9"]
[White "Shivairo, Swegenyi Mark"]
[Black "Picek, Miroslav"]
[Result "1/2-1/2"]
[TimeControl "2x90min+30s"]
[WhiteFideId "23745029"]
[BlackFideId "325198"]
[WhiteElo "1618"]
[BlackElo "1922"]

1. e4 {[%clk 01:30:58]} {[%emt 00:00:02]} c5 {[%clk 01:16:34]} {[%emt
00:14:27]} 2. Nc3 {[%clk 01:30:55]} {[%emt 00:00:34]} g6 {[%clk 01:16:34]}
{[%emt 00:00:30]} 3. Nf3 {[%clk 01:30:48]} {[%emt 00:00:36]} Nc6 {[%clk
01:16:39]} {[%emt 00:00:25]} 4. Bc4 {[%clk 01:30:35]} {[%emt 00:00:42]} e6
{[%clk 01:15:54]} {[%emt 00:01:16]} 5. d3 {[%clk 01:30:08]} {[%emt 00:00:57]}
Bg7 {[%clk 01:15:22]} {[%emt 00:01:02]} 6. Be3 {[%clk 01:24:13]} {[%emt
00:06:25]} d6 {[%clk 01:14:28]} {[%emt 00:01:23]} 7. Qd2 {[%clk 01:20:18]}
{[%emt 00:04:25]} Nd4 {[%clk 01:07:58]} {[%emt 00:07:01]} 8. Bxd4 {[%clk
01:06:06]} {[%emt 00:14:41]} cxd4 {[%clk 01:07:11]} {[%emt 00:01:18]} 9. Nb5
{[%clk 01:06:17]} {[%emt 00:00:19]} Qb6 {[%clk 00:55:08]} {[%emt 00:12:33]} 10.
Qb4 {[%clk 01:05:29]} {[%emt 00:01:16]} Bf8 {[%clk 00:55:22]} {[%emt 00:00:18]}
11. Qb3 {[%clk 01:02:01]} {[%emt 00:03:58]} Qa5+ {[%clk 00:50:40]} {[%emt
00:05:12]} 12. c3 {[%clk 01:01:01]} {[%emt 00:01:30]} a6 {[%clk 00:48:11]}
{[%emt 00:02:59]} 13. Nbxd4 {[%clk 00:52:38]} {[%emt 00:08:53]} b5 {[%emt
00:06:57]} 1/2-1/2